[Event "Polish Youth G18 Championship 2023"]
[Site "Jastrzebia Gora"]
[Date "2023.03.17"]
[Round "7.7"]
[White "Arciszewska, Zuzanna"]
[Black "Krzyzosiak, Anna"]
[Result "1-0"]
[ECO "E71"]
[WhiteElo "1750"]
[BlackElo "1503"]
[Annotator "NA RC COMBH"]
[PlyCount "69"]
[EventDate "2023.03.11"]
[EventType "swiss"]
[EventCountry "POL"]
[SourceTitle "playchess.com"]
[Source "ChessBase"]
[SourceQuality "1"]
[TimeControl "40/5400+30:1800+30"]

1. d4 {[%emt 0:00:02]} Nf6 {[%emt 0:00:06]} 2. c4 {[%emt 0:00:13]} g6 {[%emt 0:00:14]} 3. Nc3 {[%emt 0:00:17]} Bg7 {[%emt 0:00:06]} 4. e4 {[%emt 0:00:18]} d6 {[%emt 0:00:12]} 5. h3 {[%emt 0:00:43]} O-O {[%emt 0:00:48]} 6. Be3 {[%emt 0:00:18]} e5 {[%emt 0:01:06]} 7. d5 {[%emt 0:00:14]} Na6 {[%emt 0:01:40]} 8. g4 {[%emt 0:01:18]} Nc5 {[%emt 0:00:33]} 9. f3 {[%emt 0:02:03]} a5 {[%emt 0:04:56]} 10. Nge2 {[%emt 0:01:35]} c6 {[%emt 0:09:34]} 11. Qd2 {[%emt 0:01:43]} a4 {[%emt 0:03:40]} 12. Ng3 {[%emt 0:03:17]} h5 {[%emt 0:06:31]} 13. gxh5 {[%emt 0:02:30]} Nxh5 {[%emt 0:01:36]} 14. Nxh5 {[%emt 0:10:10]} Qh4+ {[%emt 0:03:34]} 15. Qf2 {[%emt 0:04:54]} Qxh5 {[%emt 0:02:10]} 16. Be2 {[%emt 0:00:35]} a3 {[%emt 0:09:28]} 17. b3 {[%emt 0:00:58]} Na6 {[%emt 0:08:02]} 18. O-O-O {[%emt 0:02:11]} c5 {[%emt 0:06:02]} 19. Nb5 {[%emt 0:01:35]} Nb4 {[%emt 0:02:03]} 20. Kb1 {[%emt 0:00:26]} f5 {[%emt 0:09:20]} 21. Qg2 {[%emt 0:10:01]} b6 {[%emt 0:08:09]} 22. Nxd6 {[%emt 0:02:58]} Bd7 {[%emt 0:04:05]} 23. Rdg1 {[%emt 0:01:47]} Rf6 {[%emt 0:05:00]} 24. Nb5 {[%emt 0:03:12]} fxe4 {[%emt 0:05:01]} 25. fxe4 {[%emt 0:02:38]} Qh7 {[%emt 0:00:18]} 26. Bg5 {[%emt 0:03:11]} Rff8 {[%emt 0:04:24]} 27. h4 {[%emt 0:00:42]} Bf6 {[%emt 0:03:48]} 28. Be3 {[%emt 0:05:52]} Kf7 {[%emt 0:00:58]} 29. Rf1 {[%emt 0:04:58]} Ke7 {[%emt 0:00:37]} 30. d6+ {[%emt 0:00:48]} Kd8 {[%emt 0:00:29]} 31. Bg5 {[%emt 0:01:43]} Qg7 {[%emt 0:00:22]} 32. Rxf6 {[%emt 0:04:38]} Rxf6 {[%emt 0:00:20]} 33. Qf3 {[%emt 0:00:45]} Kc8 {[%emt 0:00:46]} 34. Qxf6 {[%emt 0:00:08]} Qxf6 {[%emt 0:00:37]} 35. Bxf6 {[%emt 0:00:02]} 1-0

[Event "Polish Youth G18 Championship 2023"]
[Site "Jastrzebia Gora"]
[Date "2023.03.17"]
[Round "7.8"]
[White "Bugaj, Hanna"]
[Black "Gaczol, Julia"]
[Result "1-0"]
[ECO "A80"]
[WhiteElo "1639"]
[BlackElo "1419"]
[Annotator "NA RC COMBH"]
[PlyCount "111"]
[EventDate "2023.03.11"]
[EventType "swiss"]
[EventCountry "POL"]
[SourceTitle "playchess.com"]
[Source "ChessBase"]
[SourceQuality "1"]
[TimeControl "40/5400+30:1800+30"]

1. d4 {[%emt 0:00:03]} f5 {[%emt 0:00:18]} 2. Qd3 {[%emt 0:00:15]} e6 {[%emt 0:01:17]} 3. g4 {[%emt 0:00:28]} d6 {[%emt 0:03:43]} 4. gxf5 {[%emt 0:04:45]} exf5 {[%emt 0:01:35]} 5. Nf3 {[%emt 0:01:24]} g6 {[%emt 0:14:37]} 6. h4 {[%emt 0:04:44]} Nf6 {[%emt 0:03:48]} 7. Bg5 {[%emt 0:00:41]} h6 {[%emt 0:00:43]} 8. Bxf6 {[%emt 0:01:21]} Qxf6 {[%emt 0:00:17]} 9. Nc3 {[%emt 0:00:41]} Nc6 {[%emt 0:04:15]} 10. O-O-O {[%emt 0:03:12]} Qf7 {[%emt 0:03:06]} 11. e4 {[%emt 0:09:29]} Bd7 {[%emt 0:18:17]} 12. d5 {[%emt 0:25:23]} Ne5 {[%emt 0:01:54]} 13. Nxe5 {[%emt 0:00:14]} dxe5 {[%emt 0:00:04]} 14. Nb5 {[%emt 0:04:49]} Bd6 {[%emt 0:03:13]} 15. Nxd6+ {[%emt 0:07:39]} cxd6 {[%emt 0:00:11]} 16. Qa3 {[%emt 0:01:44]} Ke7 {[%emt 0:06:59]} 17. f4 {[%emt 0:06:49]} fxe4 {[%emt 0:01:48]} 18. fxe5 {[%emt 0:00:13]} Qf4+ {[%emt 0:00:26]} 19. Kb1 {[%emt 0:00:05]} Qxe5 {[%emt 0:00:36]} 20. Bg2 {[%emt 0:01:24]} Bf5 {[%emt 0:07:51]} 21. Qb4 {[%emt 0:03:19]} b5 {[%emt 0:08:34]} 22. Rhe1 {[%emt 0:02:52]} a5 {[%emt 0:00:49]} 23. Qd2 {[%emt 0:18:03]} Kf7 {[%emt 0:08:40]} 24. Re3 {[%emt 0:00:36]} Rhe8 {[%emt 0:01:34]} 25. Rde1 {[%emt 0:00:17]} Qf4 {[%emt 0:01:38]} 26. h5 {[%emt 0:01:28]} Qg5 {[%emt 0:02:30]} 27. hxg6+ {[%emt 0:00:22]} Kxg6 {[%emt 0:00:33]} 28. Qf2 {[%emt 0:00:26]} Qf6 {[%emt 0:04:02]} 29. Rf1 {[%emt 0:00:47]} Qe5 {[%emt 0:00:54]} 30. Rg3+ {[%emt 0:00:26]} Kf6 {[%emt 0:00:17]} 31. Bh3 {[%emt 0:00:12]} Ke7 {[%emt 0:00:45]} 32. Bxf5 {[%emt 0:01:19]} Rf8 {[%emt 0:00:21]} 33. Re3 {[%emt 0:00:36]} Qxd5 {[%emt 0:00:52]} 34. Rxe4+ {[%emt 0:00:21]} Qxe4 {[%emt 0:00:13]} 35. Bxe4 {[%emt 0:00:11]} Rxf2 {[%emt 0:00:03]} 36. Rxf2 {[%emt 0:00:06]} Rg8 {[%emt 0:00:32]} 37. b3 {[%emt 0:00:08]} Rg4 {[%emt 0:00:46]} 38. Bd3 {[%emt 0:00:29]} b4 {[%emt 0:00:51]} 39. Rh2 {[%emt 0:00:23]} Rg5 {[%emt 0:00:31]} 40. Rxh6 {[%emt 0:00:00]} Kd7 {[%emt 0:00:00]} 41. Rf6 {[%emt 0:00:37]} Rc5 {[%emt 0:01:23]} 42. Kb2 {[%emt 0:01:39]} Kc7 {[%emt 0:01:51]} 43. Rf5 {[%emt 0:00:51]} d5 {[%emt 0:00:25]} 44. a3 {[%emt 0:00:20]} Kc6 {[%emt 0:01:35]} 45. axb4 {[%emt 0:00:51]} axb4 {[%emt 0:00:06]} 46. Rf8 {[%emt 0:00:49]} Kb7 {[%emt 0:01:11]} 47. Kc1 {[%emt 0:00:34]} Rc6 {[%emt 0:01:38]} 48. Rd8 {[%emt 0:00:24]} Rc5 {[%emt 0:00:19]} 49. Kd2 {[%emt 0:00:07]} Kc7 {[%emt 0:00:06]} 50. Rf8 {[%emt 0:00:21]} Rc6 {[%emt 0:01:20]} 51. Rf4 {[%emt 0:00:58]} Rb6 {[%emt 0:00:10]} 52. Ke3 {[%emt 0:00:06]} Re6+ {[%emt 0:01:39]} 53. Kd4 {[%emt 0:00:34]} Kc6 {[%emt 0:00:15]} 54. Rg4 {[%emt 0:01:15]} Rh6 {[%emt 0:01:16]} 55. Rg6+ {[%emt 0:00:07]} Rxg6 {[%emt 0:00:07]} 56. Bxg6 {[%emt 0:00:04]} 1-0

[Event "Polish Youth G18 Championship 2023"]
[Site "Jastrzebia Gora"]
[Date "2023.03.17"]
[Round "7.9"]
[White "Bialek, Alicja"]
[Black "Uliasz, Katarzyna"]
[Result "1/2-1/2"]
[ECO "B90"]
[WhiteElo "1576"]
[BlackElo "1670"]
[Annotator "NA RC COMBH"]
[PlyCount "72"]
[EventDate "2023.03.11"]
[EventType "swiss"]
[EventCountry "POL"]
[SourceTitle "playchess.com"]
[Source "ChessBase"]
[SourceQuality "1"]
[TimeControl "40/5400+30:1800+30"]

1. e4 {[%emt 0:00:03]} c5 {[%emt 0:00:30]} 2. Nf3 {[%emt 0:00:02]} Nf6 {[%emt 0:00:07]} 3. Nc3 {[%emt 0:02:28]} d6 {[%emt 0:00:47]} 4. d4 {[%emt 0:01:27]} cxd4 {[%emt 0:00:05]} 5. Nxd4 {[%emt 0:00:02]} a6 {[%emt 0:00:12]} 6. Nb3 {[%emt 0:01:24]} g6 {[%emt 0:02:33]} 7. Be2 {[%emt 0:01:02]} Bg7 {[%emt 0:00:21]} 8. O-O {[%emt 0:00:09]} O-O {[%emt 0:00:57]} 9. Re1 {[%emt 0:00:22]} Nc6 {[%emt 0:01:36]} 10. Bf1 {[%emt 0:03:13]} Bg4 {[%emt 0:07:48]} 11. Qd2 {[%emt 0:03:06]} Rc8 {[%emt 0:06:24]} 12. h3 {[%emt 0:28:37]} Be6 {[%emt 0:10:35]} 13. Qd1 {[%emt 0:06:45]} d5 {[%emt 0:09:58]} 14. Nc5 {[%emt 0:04:42]} d4 {[%emt 0:06:55]} 15. N3a4 {[%emt 0:13:43]} b5 {[%emt 0:08:07]} 16. Nxe6 {[%emt 0:04:29]} fxe6 {[%emt 0:00:23]} 17. Nc5 {[%emt 0:02:35]} Qd6 {[%emt 0:00:15]} 18. Nd3 {[%emt 0:03:35]} e5 {[%emt 0:01:07]} 19. Bd2 {[%emt 0:01:42]} Nh5 {[%emt 0:04:54]} 20. g3 {[%emt 0:05:43]} a5 {[%emt 0:04:19]} 21. Bg2 {[%emt 0:10:48]} a4 {[%emt 0:03:21]} 22. a3 {[%emt 0:01:20]} Qf6 {[%emt 0:02:01]} 23. Qe2 {[%emt 0:01:29]} Qf7 {[%emt 0:02:30]} 24. Rac1 {[%emt 0:01:38]} Rc7 {[%emt 0:06:16]} 25. Rf1 {[%emt 0:00:46]} Rfc8 {[%emt 0:00:25]} 26. Bf3 {[%emt 0:01:27]} Nf6 {[%emt 0:00:05]} 27. Bg2 {[%emt 0:00:35]} Qc4 {[%emt 0:04:04]} 28. Qd1 {[%emt 0:00:25]} Kh8 {[%emt 0:03:02]} 29. Re1 {[%emt 0:00:22]} Ra7 {[%emt 0:02:27]} 30. Bf1 {[%emt 0:00:10]} Qf7 {[%emt 0:00:26]} 31. Qe2 {[%emt 0:00:33]} Nh5 {[%emt 0:00:09]} 32. Bg2 {[%emt 0:00:57]} Na5 {[%emt 0:02:47]} 33. Qg4 {[%emt 0:00:43]} e6 {[%emt 0:00:51]} 34. Bb4 {[%emt 0:00:35]} Nc6 {[%emt 0:02:58]} 35. Bd2 {[%emt 0:00:22]} Rf8 {[%emt 0:01:58]} 36. Qe2 {[%emt 0:00:35]} Na5 {[%emt 0:00:37]} 1/2-1/2

[Event "Polish Youth G18 Championship 2023"]
[Site "Jastrzebia Gora"]
[Date "2023.03.17"]
[Round "7.10"]
[White "Lukasik, Zuzanna"]
[Black "Samol, Julia"]
[Result "1/2-1/2"]
[ECO "B46"]
[WhiteElo "1781"]
[BlackElo "1374"]
[Annotator "NA RC COMBH"]
[PlyCount "95"]
[EventDate "2023.03.11"]
[EventType "swiss"]
[EventCountry "POL"]
[SourceTitle "playchess.com"]
[Source "ChessBase"]
[SourceQuality "1"]
[TimeControl "40/5400+30:1800+30"]

1. e4 {[%emt 0:00:18]} c5 {[%emt 0:00:03]} 2. Nf3 {[%emt 0:00:33]} e6 {[%emt 0:00:05]} 3. d4 {[%emt 0:00:35]} cxd4 {[%emt 0:00:07]} 4. Nxd4 {[%emt 0:01:13]} Nc6 {[%emt 0:00:06]} 5. Nc3 {[%emt 0:00:44]} a6 {[%emt 0:00:09]} 6. Be2 {[%emt 0:00:09]} Qc7 {[%emt 0:00:06]} 7. O-O {[%emt 0:00:35]} Nf6 {[%emt 0:00:05]} 8. Kh1 {[%emt 0:00:47]} Be7 {[%emt 0:00:18]} 9. f4 {[%emt 0:01:16]} d6 {[%emt 0:00:03]} 10. Be3 {[%emt 0:00:35]} Na5 {[%emt 0:02:43]} 11. Qd3 {[%emt 0:06:28]} O-O {[%emt 0:03:55]} 12. Rae1 {[%emt 0:09:35]} b5 {[%emt 0:03:06]} 13. Bf3 {[%emt 0:02:31]} Bb7 {[%emt 0:01:19]} 14. Bc1 {[%emt 0:05:28]} Rac8 {[%emt 0:11:06]} 15. Nce2 {[%emt 0:13:55]} Nc4 {[%emt 0:09:32]} 16. b3 {[%emt 0:05:31]} Nb6 {[%emt 0:06:21]} 17. Ng3 {[%emt 0:03:23]} Nbd7 {[%emt 0:04:25]} 18. Bd2 {[%emt 0:04:50]} Nc5 {[%emt 0:01:34]} 19. Qe2 {[%emt 0:01:28]} Qb8 {[%emt 0:08:15]} 20. Rc1 {[%emt 0:04:54]} Qa8 {[%emt 0:01:22]} 21. Rfe1 {[%emt 0:00:26]} Bd8 {[%emt 0:05:52]} 22. c4 {[%emt 0:04:13]} bxc4 {[%emt 0:00:37]} 23. bxc4 {[%emt 0:00:01]} Bb6 {[%emt 0:02:49]} 24. Nb3 {[%emt 0:02:49]} a5 {[%emt 0:02:41]} 25. Nxc5 {[%emt 0:02:37]} Bxc5 {[%emt 0:00:49]} 26. Qd3 {[%emt 0:10:30]} Bc6 {[%emt 0:04:26]} 27. Bc3 {[%emt 0:03:33]} Bb4 {[%emt 0:10:46]} 28. Bxb4 {[%emt 0:05:13]} axb4 {[%emt 0:00:05]} 29. Qxd6 {[%emt 0:01:06]} Rfd8 {[%emt 0:01:57]} 30. Qxb4 {[%emt 0:00:25]} Qxa2 {[%emt 0:00:47]} 31. Re2 {[%emt 0:02:35]} Qa7 {[%emt 0:01:34]} 32. Qb3 {[%emt 0:03:07]} Qc7 {[%emt 0:02:29]} 33. e5 {[%emt 0:01:03]} Nd7 {[%emt 0:01:26]} 34. Bxc6 {[%emt 0:02:08]} Qxc6 {[%emt 0:00:16]} 35. Ne4 {[%emt 0:00:50]} Rb8 {[%emt 0:04:28]} 36. Qe3 {[%emt 0:00:47]} Qa4 {[%emt 0:01:37]} 37. h3 {[%emt 0:01:01]} Rb3 {[%emt 0:01:20]} 38. Qd4 {[%emt 0:01:28]} Rdb8 {[%emt 0:04:46]} 39. Rd2 {[%emt 0:00:11]} Qa3 {[%emt 0:02:06]} 40. Rcd1 {[%emt 0:00:00]} Nf8 {[%emt 0:00:00]} 41. Kh2 {[%emt 0:04:58]} h6 {[%emt 0:08:23]} 42. Rd3 {[%emt 0:03:40]} Ng6 {[%emt 0:02:46]} 43. Nc5 {[%emt 0:09:25]} Rxd3 {[%emt 0:01:33]} 44. Nxd3 {[%emt 0:00:19]} Nh4 {[%emt 0:08:08]} 45. Qf2 {[%emt 0:04:20]} Nf5 {[%emt 0:03:28]} 46. Qe2 {[%emt 0:04:18]} Rd8 {[%emt 0:03:59]} 47. c5 {[%emt 0:02:57]} Qc3 {[%emt 0:02:06]} 48. Nf2 {[%emt 0:04:28]} 1/2-1/2

[Event "Polish Youth G18 Championship 2023"]
[Site "Jastrzebia Gora"]
[Date "2023.03.17"]
[Round "7.11"]
[White "Obrochta, Lena"]
[Black "Lochina, Justyna"]
[Result "1-0"]
[ECO "B44"]
[WhiteElo "1673"]
[BlackElo "1645"]
[Annotator "NA RC COMBH"]
[PlyCount "103"]
[EventDate "2023.03.11"]
[EventType "swiss"]
[EventCountry "POL"]
[SourceTitle "playchess.com"]
[Source "ChessBase"]
[SourceQuality "1"]
[TimeControl "40/5400+30:1800+30"]

1. e4 {[%emt 0:00:07]} c5 {[%emt 0:00:10]} 2. Nf3 {[%emt 0:00:14]} e6 {[%emt 0:00:27]} 3. d4 {[%emt 0:00:26]} cxd4 {[%emt 0:00:18]} 4. Nxd4 {[%emt 0:00:17]} Nc6 {[%emt 0:01:11]} 5. Nxc6 {[%emt 0:00:42]} bxc6 {[%emt 0:02:52]} 6. Bd3 {[%emt 0:01:49]} Nf6 {[%emt 0:16:51]} 7. O-O {[%emt 0:00:58]} Qc7 {[%emt 0:03:10]} 8. Nd2 {[%emt 0:06:04]} Be7 {[%emt 0:13:21]} 9. c4 {[%emt 0:03:47]} d5 {[%emt 0:08:07]} 10. b3 {[%emt 0:04:27]} dxe4 {[%emt 0:04:35]} 11. Nxe4 {[%emt 0:01:01]} Nxe4 {[%emt 0:03:50]} 12. Bxe4 {[%emt 0:00:06]} Bf6 {[%emt 0:06:50]} 13. Qf3 {[%emt 0:09:22]} Bb7 {[%emt 0:03:12]} 14. Bf4 {[%emt 0:02:07]} e5 {[%emt 0:02:30]} 15. Be3 {[%emt 0:03:25]} Be7 {[%emt 0:05:45]} 16. Rfd1 {[%emt 0:01:18]} g6 {[%emt 0:01:59]} 17. Bh6 {[%emt 0:01:42]} Bf8 {[%emt 0:09:27]} 18. Qf6 {[%emt 0:06:14]} Rg8 {[%emt 0:01:18]} 19. Bxf8 {[%emt 0:00:29]} Kxf8 {[%emt 0:02:51]} 20. Rd6 {[%emt 0:01:24]} Qe7 {[%emt 0:03:12]} 21. Bxc6 {[%emt 0:01:20]} Qxf6 {[%emt 0:04:25]} 22. Rxf6 {[%emt 0:00:07]} Bxc6 {[%emt 0:03:25]} 23. Rxc6 {[%emt 0:00:07]} Kg7 {[%emt 0:01:17]} 24. Rd1 {[%emt 0:00:49]} Rgd8 {[%emt 0:00:39]} 25. Rcd6 {[%emt 0:00:37]} Re8 {[%emt 0:00:44]} 26. Kf1 {[%emt 0:00:25]} a5 {[%emt 0:00:10]} 27. Ke2 {[%emt 0:00:45]} f5 {[%emt 0:00:42]} 28. R1d5 {[%emt 0:00:39]} e4 {[%emt 0:00:20]} 29. Ke3 {[%emt 0:02:18]} Rec8 {[%emt 0:00:41]} 30. Kd4 {[%emt 0:00:47]} h5 {[%emt 0:00:35]} 31. c5 {[%emt 0:05:17]} Rab8 {[%emt 0:00:09]} 32. c6 {[%emt 0:01:18]} a4 {[%emt 0:00:39]} 33. Rd7+ {[%emt 0:01:18]} Kh6 {[%emt 0:00:18]} 34. Rb7 {[%emt 0:02:07]} axb3 {[%emt 0:00:41]} 35. axb3 {[%emt 0:00:40]} Rxb7 {[%emt 0:00:23]} 36. cxb7 {[%emt 0:00:06]} Rb8 {[%emt 0:00:25]} 37. Rd7 {[%emt 0:00:04]} Kg5 {[%emt 0:00:21]} 38. Kc5 {[%emt 0:00:32]} Kf6 {[%emt 0:01:08]} 39. Kc6 {[%emt 0:00:25]} Ke6 {[%emt 0:00:12]} 40. Rd1 {[%emt 0:00:00]} f4 {[%emt 0:00:00]} 41. Kc7 {[%emt 0:00:57]} Rxb7+ {[%emt 0:01:13]} 42. Kxb7 {[%emt 0:00:08]} Ke5 {[%emt 0:00:32]} 43. Kc6 {[%emt 0:00:40]} e3 {[%emt 0:01:25]} 44. fxe3 {[%emt 0:00:40]} fxe3 {[%emt 0:00:12]} 45. b4 {[%emt 0:00:14]} Ke4 {[%emt 0:00:19]} 46. b5 {[%emt 0:00:28]} e2 {[%emt 0:00:10]} 47. Re1 {[%emt 0:00:25]} Ke3 {[%emt 0:00:11]} 48. b6 {[%emt 0:00:17]} Kf2 {[%emt 0:00:08]} 49. Rxe2+ {[%emt 0:00:13]} Kxe2 {[%emt 0:00:08]} 50. b7 {[%emt 0:00:04]} Kf2 {[%emt 0:00:09]} 51. b8=Q {[%emt 0:00:10]} Kxg2 {[%emt 0:00:11]} 52. Qg3+ {[%emt 0:00:37]} 1-0

[Event "Polish Youth G18 Championship 2023"]
[Site "Jastrzebia Gora"]
[Date "2023.03.17"]
[Round "7.12"]
[White "Bychowska, Marta"]
[Black "Mroz, Lena"]
[Result "0-1"]
[ECO "B28"]
[WhiteElo "1388"]
[BlackElo "1635"]
[Annotator "NA RC COMBH"]
[PlyCount "152"]
[EventDate "2023.03.11"]
[EventType "swiss"]
[EventCountry "POL"]
[SourceTitle "playchess.com"]
[Source "ChessBase"]
[SourceQuality "1"]
[TimeControl "40/5400+30:1800+30"]

1. e4 {[%emt 0:00:03]} c5 {[%emt 0:00:04]} 2. Nf3 {[%emt 0:00:05]} a6 {[%emt 0:00:06]} 3. c3 {[%emt 0:00:57]} d5 {[%emt 0:00:15]} 4. exd5 {[%emt 0:00:13]} Qxd5 {[%emt 0:00:06]} 5. d4 {[%emt 0:00:22]} e6 {[%emt 0:00:50]} 6. Be3 {[%emt 0:00:57]} cxd4 {[%emt 0:00:31]} 7. Qxd4 {[%emt 0:00:26]} Nf6 {[%emt 0:11:09]} 8. Bc4 {[%emt 0:02:08]} Qc6 {[%emt 0:16:59]} 9. O-O {[%emt 0:03:24]} Nbd7 {[%emt 0:00:40]} 10. Nbd2 {[%emt 0:02:13]} Bc5 {[%emt 0:04:58]} 11. Qd3 {[%emt 0:02:22]} b5 {[%emt 0:06:25]} 12. Bb3 {[%emt 0:00:18]} Bxe3 {[%emt 0:00:38]} 13. Qxe3 {[%emt 0:00:39]} Bb7 {[%emt 0:01:02]} 14. Qg5 {[%emt 0:03:39]} O-O {[%emt 0:12:57]} 15. Nd4 {[%emt 0:03:00]} Qb6 {[%emt 0:03:16]} 16. N2f3 {[%emt 0:05:05]} Rac8 {[%emt 0:09:33]} 17. a3 {[%emt 0:03:22]} h6 {[%emt 0:03:56]} 18. Qe3 {[%emt 0:02:02]} a5 {[%emt 0:05:49]} 19. Rfd1 {[%emt 0:02:51]} Nc5 {[%emt 0:03:57]} 20. Ba2 {[%emt 0:07:40]} b4 {[%emt 0:04:05]} 21. axb4 {[%emt 0:11:57]} axb4 {[%emt 0:00:17]} 22. cxb4 {[%emt 0:03:41]} Qxb4 {[%emt 0:00:48]} 23. Qa3 {[%emt 0:02:20]} Qxa3 {[%emt 0:10:58]} 24. bxa3 {[%emt 0:00:07]} Nfe4 {[%emt 0:00:23]} 25. Nb5 {[%emt 0:02:45]} Rcd8 {[%emt 0:02:09]} 26. Ne5 {[%emt 0:01:14]} Ba6 {[%emt 0:00:32]} 27. Bc4 {[%emt 0:00:35]} Rxd1+ {[%emt 0:00:20]} 28. Rxd1 {[%emt 0:00:06]} Bxb5 {[%emt 0:00:12]} 29. Bxb5 {[%emt 0:00:23]} Nc3 {[%emt 0:01:16]} 30. Rc1 {[%emt 0:00:28]} Nxb5 {[%emt 0:00:35]} 31. Rxc5 {[%emt 0:00:09]} Nxa3 {[%emt 0:00:10]} 32. Rc7 {[%emt 0:00:24]} Nb5 {[%emt 0:00:28]} 33. Rd7 {[%emt 0:00:25]} Rc8 {[%emt 0:00:56]} 34. g3 {[%emt 0:00:33]} Rc7 {[%emt 0:00:33]} 35. Rxc7 {[%emt 0:00:32]} Nxc7 {[%emt 0:00:01]} 36. f4 {[%emt 0:00:11]} Nd5 {[%emt 0:00:20]} 37. Kf2 {[%emt 0:00:08]} Kf8 {[%emt 0:00:49]} 38. Kf3 {[%emt 0:00:07]} f6 {[%emt 0:00:36]} 39. Nd3 {[%emt 0:00:59]} Ke7 {[%emt 0:00:17]} 40. g4 {[%emt 0:00:00]} Kf7 {[%emt 0:00:00]} 41. h4 {[%emt 0:00:43]} Ne7 {[%emt 0:04:11]} 42. g5 {[%emt 0:01:03]} h5 {[%emt 0:00:53]} 43. Nc5 {[%emt 0:01:03]} Nf5 {[%emt 0:00:47]} 44. gxf6 {[%emt 0:01:00]} gxf6 {[%emt 0:00:25]} 45. Kg2 {[%emt 0:04:11]} Nxh4+ {[%emt 0:00:11]} 46. Kh3 {[%emt 0:00:05]} Ng6 {[%emt 0:01:16]} 47. Kg3 {[%emt 0:00:43]} f5 {[%emt 0:04:20]} 48. Kf3 {[%emt 0:01:07]} Ke7 {[%emt 0:00:22]} 49. Nd3 {[%emt 0:00:20]} Kd6 {[%emt 0:00:46]} 50. Nf2 {[%emt 0:00:10]} Kd5 {[%emt 0:01:03]} 51. Nh1 {[%emt 0:00:19]} h4 {[%emt 0:00:08]} 52. Nf2 {[%emt 0:00:13]} e5 {[%emt 0:00:32]} 53. fxe5 {[%emt 0:00:26]} Kxe5 {[%emt 0:00:09]} 54. Nd3+ {[%emt 0:00:29]} Ke6 {[%emt 0:01:09]} 55. Nf2 {[%emt 0:01:11]} Kf6 {[%emt 0:00:53]} 56. Nh3 {[%emt 0:00:14]} Nf8 {[%emt 0:00:55]} 57. Kg2 {[%emt 0:06:19]} Ne6 {[%emt 0:00:31]} 58. Nf2 {[%emt 0:01:14]} Kg5 {[%emt 0:00:36]} 59. Nh3+ {[%emt 0:00:40]} Kg4 {[%emt 0:00:46]} 60. Nf2+ {[%emt 0:00:11]} Kh5 {[%emt 0:02:03]} 61. Kf3 {[%emt 0:01:08]} Kg6 {[%emt 0:00:36]} 62. Nd3 {[%emt 0:00:59]} Kg5 {[%emt 0:01:37]} 63. Nf2 {[%emt 0:00:31]} Nf4 {[%emt 0:01:08]} 64. Nh1 {[%emt 0:02:46]} Nh3 {[%emt 0:00:14]} 65. Kg2 {[%emt 0:00:48]} Kg4 {[%emt 0:00:04]} 66. Kh2 {[%emt 0:01:11]} f4 {[%emt 0:00:34]} 67. Kg2 {[%emt 0:00:12]} f3+ {[%emt 0:00:26]} 68. Kf1 {[%emt 0:00:39]} Kf4 {[%emt 0:00:38]} 69. Ke1 {[%emt 0:00:28]} Ke3 {[%emt 0:00:12]} 70. Kf1 {[%emt 0:00:30]} Kf4 {[%emt 0:01:59]} 71. Ke1 {[%emt 0:00:18]} Ke4 {[%emt 0:00:04]} 72. Kf1 {[%emt 0:00:41]} Ke3 {[%emt 0:00:03]} 73. Ke1 {[%emt 0:00:10]} f2+ {[%emt 0:00:30]} 74. Kf1 {[%emt 0:00:06]} Kf3 {[%emt 0:00:17]} 75. Nxf2 {[%emt 0:00:19]} Nxf2 {[%emt 0:00:04]} 76. Kg1 {[%emt 0:00:05]} Kg3 {[%emt 0:00:04]} 0-1

[Event "Polish Youth G18 Championship 2023"]
[Site "Jastrzebia Gora"]
[Date "2023.03.17"]
[Round "7.13"]
[White "Bartoszek, Julia"]
[Black "Anyz, Monika"]
[Result "1/2-1/2"]
[ECO "B31"]
[WhiteElo "1344"]
[BlackElo "1755"]
[Annotator "NA RC COMBH"]
[PlyCount "69"]
[EventDate "2023.03.11"]
[EventType "swiss"]
[EventCountry "POL"]
[SourceTitle "playchess.com"]
[Source "ChessBase"]
[SourceQuality "1"]
[TimeControl "40/5400+30:1800+30"]

1. e4 {[%emt 0:00:04]} c5 {[%emt 0:00:05]} 2. Nf3 {[%emt 0:00:05]} Nc6 {[%emt 0:00:06]} 3. Bb5 {[%emt 0:00:11]} g6 {[%emt 0:00:36]} 4. O-O {[%emt 0:00:18]} Bg7 {[%emt 0:00:06]} 5. c3 {[%emt 0:00:45]} e5 {[%emt 0:01:42]} 6. d3 {[%emt 0:01:15]} Nge7 {[%emt 0:01:43]} 7. Be3 {[%emt 0:01:09]} b6 {[%emt 0:00:48]} 8. d4 {[%emt 0:05:08]} cxd4 {[%emt 0:00:24]} 9. cxd4 {[%emt 0:00:06]} exd4 {[%emt 0:00:47]} 10. Nxd4 {[%emt 0:00:12]} O-O {[%emt 0:00:27]} 11. Nc3 {[%emt 0:03:29]} Bb7 {[%emt 0:03:17]} 12. Rc1 {[%emt 0:04:26]} Rc8 {[%emt 0:07:23]} 13. Qd2 {[%emt 0:04:00]} Nxd4 {[%emt 0:10:07]} 14. Bxd4 {[%emt 0:00:19]} Bxd4 {[%emt 0:00:49]} 15. Qxd4 {[%emt 0:00:06]} d5 {[%emt 0:04:39]} 16. exd5 {[%emt 0:02:57]} Nxd5 {[%emt 0:02:44]} 17. Nxd5 {[%emt 0:01:17]} Qxd5 {[%emt 0:00:15]} 18. Qxd5 {[%emt 0:01:07]} Bxd5 {[%emt 0:00:06]} 19. a3 {[%emt 0:00:56]} Be6 {[%emt 0:00:36]} 20. h3 {[%emt 0:02:30]} Rfd8 {[%emt 0:00:35]} 21. Rfd1 {[%emt 0:02:03]} Rxd1+ {[%emt 0:04:48]} 22. Rxd1 {[%emt 0:00:08]} Kf8 {[%emt 0:00:23]} 23. Rd2 {[%emt 0:02:04]} Rc1+ {[%emt 0:01:07]} 24. Kh2 {[%emt 0:00:26]} Ke7 {[%emt 0:00:18]} 25. Kg3 {[%emt 0:02:14]} Rc5 {[%emt 0:02:14]} 26. Ba4 {[%emt 0:05:30]} b5 {[%emt 0:05:15]} 27. Bd1 {[%emt 0:02:27]} Rd5 {[%emt 0:04:57]} 28. Rxd5 {[%emt 0:00:40]} Bxd5 {[%emt 0:00:05]} 29. Be2 {[%emt 0:00:44]} a6 {[%emt 0:01:48]} 30. f3 {[%emt 0:00:20]} Kd6 {[%emt 0:00:09]} 31. Kf4 {[%emt 0:01:24]} Kc5 32. Ke5 Bc4 {[%emt 0:05:42]} 33. b4+ {[%emt 0:04:34]} Kc6 {[%emt 0:01:12]} 34. Bxc4 {[%emt 0:01:56]} bxc4 {[%emt 0:00:09]} 35. Ke4 1/2-1/2